bitfinex/quotes_SOLUSD_20220128
["timestamp","ask_amount","ask_price","bid_price","bid_amount"]
[1643370859814,0.25,88.459,88.41,16.29]
[1643370860516,6.0,88.474,88.411,2.3850904]
[1643370860715,39.81908083,88.484,88.42,6.0]
[1643370860916,39.81908083,88.484,88.43,16.29]
[1643370861114,39.81908083,88.484,88.431,24.3092]
[1643370861316,39.81908083,88.484,88.44,6.0]
[1643370861517,39.81908083,88.484,88.441,6.0]
[1643370861916,0.25,88.483,88.441,6.0]
[1643370864019,39.81908083,88.484,88.441,6.0]
[1643370864623,0.25,88.483,88.41,2.1350904]
[1643370864820,0.25,88.483,88.42,16.29]
[1643370865621,6.0,88.474,88.42,16.29]
[1643370865821,0.25,88.473,88.42,16.29]
[1643370866623,6.0,88.47,88.43,6.0]
[1643370866823,6.0,88.47,88.42,16.29]
[1643370866824,0.25,88.469,88.42,16.29]
[1643370867227,0.25,88.469,88.39,16.29]
[1643370867524,2.95669142,88.468,88.37,16.29]
[1643370867821,0.25,88.467,88.37,16.29]
[1643370868024,39.27982325,88.457,88.37,16.29]
[1643370868221,129.879,88.44,88.37,16.29]
[1643370868422,0.25,88.439,88.37,16.29]
[1643370868622,6.0,88.43,88.37,16.29]
[1643370868822,40.06908083,88.429,88.37,16.29]
[1643370869023,6.0,88.419,88.37,16.29]
[1643370869422,0.25,88.418,88.37,16.29]
[1643370870824,0.25,88.418,88.34,16.29]
[1643370871823,0.25,88.418,88.341,0.25]
[1643370872024,16.985,88.41,88.341,0.25]
[1643370872427,38.95312009,88.399,88.34,16.29]
[1643370872924,0.25,88.398,88.34,16.29]
[1643370873926,0.25,88.398,88.341,0.25]
[1643370874932,3.08858334,88.459,88.35,6.0]
[1643370875128,56.598,88.46,88.352,6.0]
[1643370875329,56.598,88.46,88.361,6.0]
[1643370875530,56.598,88.46,88.362,23.261]
[1643370875728,56.598,88.46,88.362,23.511]
[1643370875930,43.90941495,88.438,88.362,23.511]
[1643370876331,6.0,88.428,88.362,23.261]
[1643370876530,6.0,88.428,88.35,16.29]
[1643370876730,6.0,88.428,88.352,0.25]
[1643370877331,0.25,88.427,88.352,0.25]
[1643370877540,0.25,88.427,88.35,16.29]
[1643370877732,113.15,88.427,88.35,16.29]
[1643370878133,6.0,88.417,88.35,16.29]
[1643370878435,0.25,88.416,88.35,16.29]
[1643370878635,0.25,88.416,88.36,6.0]
[1643370878834,0.25,88.416,88.37,16.29]
[1643370879436,0.25,88.437,88.37,16.29]
[1643370880334,16.981,88.43,88.37,16.29]
[1643370880758,0.25,88.429,88.37,16.29]
[1643370882560,22.983,88.42,88.37,16.29]
[1643370882962,0.25,88.419,88.37,16.29]
[1643370885567,6.0,88.428,88.37,16.29]
[1643370885768,43.90941495,88.438,88.371,2.37685298]
[1643370885967,43.90941495,88.438,88.381,6.0]
[1643370886166,43.90941495,88.438,88.39,16.29]
[1643370886366,43.90941495,88.438,88.391,0.25]
[1643370886567,43.90941495,88.438,88.39,16.29]
[1643370887270,0.25,88.437,88.39,16.29]
[1643370887569,6.0,88.428,88.39,16.29]
[1643370887772,0.25,88.427,88.35,10.90710899]
[1643370887970,0.25,88.427,88.36,16.29]
[1643370888771,0.25,88.427,88.361,0.25]
[1643370888972,6.0,88.428,88.361,0.25]
[1643370889372,6.0,88.428,88.362,2.12685298]
[1643370889774,6.0,88.428,88.363,0.25]
[1643370889977,43.90941495,88.438,88.363,0.25]
[1643370890174,43.90941495,88.438,88.364,19.87798633]
[1643370890377,43.90941495,88.438,88.365,0.25]
[1643370890976,43.90941495,88.438,88.365,18.00113335]
[1643370891377,0.25,88.437,88.366,23.4023]
[1643370891575,0.25,88.437,88.38,16.29]
[1643370891776,0.25,88.437,88.381,0.25]
[1643370891976,6.0,88.428,88.381,0.25]
[1643370892176,0.25,88.427,88.366,23.4023]
[1643370892379,0.25,88.427,88.3,3.13733268]
[1643370892581,6.0,88.426,88.33,22.29]
[1643370892779,0.25,88.425,88.33,16.29]
[1643370892980,6.0,88.417,88.33,16.29]
[1643370893177,16.987,88.4,88.33,16.29]
[1643370893379,35.43948913,88.399,88.33,16.29]
[1643370893678,6.0,88.389,88.33,16.29]
[1643370893878,35.18948913,88.399,88.33,16.29]
[1643370894278,0.25,88.398,88.331,0.25]
[1643370894479,0.25,88.398,88.33,16.29]
[1643370895079,6.0,88.389,88.33,16.29]
[1643370895281,0.25,88.398,88.33,16.29]
[1643370895881,0.25,88.398,88.331,0.25]
[1643370897284,6.0,88.389,88.331,0.25]
[1643370897482,6.0,88.389,88.33,16.29]
[1643370897483,0.25,88.388,88.33,16.29]
[1643370898087,112.9,88.385,88.295,17.74345613]
[1643370898282,0.25,88.384,88.28,16.29]
[1643370898483,6.0,88.375,88.28,16.29]
[1643370898685,16.994,88.37,88.281,31.51918266]
[1643370898883,44.15941495,88.369,88.282,31.10475942]
[1643370899084,6.0,88.359,88.282,31.10475942]
[1643370899284,0.25,88.358,88.283,0.25]
[1643370899512,6.25,88.358,88.283,0.25]
[1643370899683,6.25,88.358,88.275,47.4696]
[1643370900087,6.0,88.349,88.275,47.4696]
[1643370900285,0.25,88.348,88.276,31.52062643]
[1643370900486,6.25,88.348,88.276,31.52062643]
[1643370900788,113.15,88.348,88.275,47.4696]
[1643370900987,35.18948913,88.337,88.275,47.4696]
[1643370901385,6.0,88.327,88.275,47.4696]
[1643370901786,0.25,88.326,88.276,0.25]
[1643370903989,6.0,88.327,88.276,0.25]
[1643370904190,17.2318,88.375,88.28,16.29]
[1643370904391,17.2318,88.375,88.281,0.25]
[1643370904592,6.0,88.365,88.281,2.37282212]
[1643370904990,38.57792123,88.364,88.281,0.25]
[1643370905392,6.0,88.354,88.281,0.25]
[1643370905591,112.9,88.349,88.28,16.29]
[1643370905792,0.25,88.348,88.28,16.29]
[1643370905995,6.0,88.339,88.28,16.29]
[1643370906392,0.25,88.338,88.28,16.29]
[1643370906593,0.25,88.338,88.275,47.4696]
[1643370906893,0.25,88.338,88.276,0.25]
[1643370908119,56.643,88.39,88.277,2.12513404]
[1643370908323,16.29,88.42,88.29,16.29]
[1643370908533,77.4376,88.467,88.29,16.29]
[1643370908534,24.9366,88.425,88.29,16.29]
[1643370908721,17.0392,88.433,88.291,11.1844978]
[1643370908920,40.3386,88.438,88.3,6.0]
[1643370909120,40.15890129,88.437,88.31,16.29]
[1643370909422,40.15890129,88.437,88.311,48.7249]
[1643370909721,112.9,88.426,88.321,6.0]
[1643370909921,16.986,88.42,88.33,16.29]
[1643370910122,6.0,88.41,88.33,51.54835361]
[1643370910321,39.19000279,88.409,88.331,0.25]
[1643370910522,6.0,88.399,88.331,0.25]
[1643370910823,0.25,88.398,88.331,0.25]
[1643370911222,38.94000279,88.409,88.331,0.25]
[1643370911421,38.94000279,88.409,88.331,27.14953883]
[1643370912823,0.25,88.408,88.331,27.14953883]
[1643370913323,0.25,88.408,88.332,0.25]
[1643370915525,0.25,88.408,88.341,6.0]
[1643370915725,0.25,88.408,88.35,16.29]
[1643370915924,6.0,88.427,88.35,16.29]
[1643370916128,6.0,88.427,88.351,0.25]
[1643370916328,0.25,88.426,88.351,0.25]
[1643370916527,38.5798035,88.426,88.35,16.29]
[1643370917025,6.0,88.416,88.35,16.29]
[1643370917226,6.0,88.416,88.351,0.25]
[1643370917425,0.25,88.415,88.351,0.25]
[1643370920330,6.0,88.416,88.351,0.25]
[1643370920532,3.08858334,88.471,88.36,6.0]
[1643370920730,56.586,88.48,88.36,6.0]
[1643370920731,73.3494,88.48,88.37,16.29]
[1643370920932,22.7576,88.479,88.371,24.6418]
[1643370921134,6.0,88.469,88.381,6.0]
[1643370921333,35.7217014,88.468,88.39,16.29]
[1643370921834,16.976,88.46,88.39,16.29]
[1643370922034,6.0,88.45,88.39,16.29]
[1643370922634,6.0,88.457,88.371,24.6418]
[1643370922837,6.0,88.457,88.37,16.29]
[1643370923045,16.979,88.45,88.37,16.29]
[1643370923436,43.0680906,88.439,88.37,16.29]
[1643370923640,6.0,88.429,88.37,16.29]
[1643370923836,0.25,88.428,88.37,16.29]
[1643370925140,0.25,88.428,88.351,24.3085]
[1643370925540,6.25,88.428,88.351,24.3085]
[1643370925941,6.0,88.426,88.351,24.3085]
[1643370926145,16.983,88.42,88.351,24.3085]
[1643370926341,6.0,88.418,88.351,24.3085]
[1643370926542,34.8745474,88.409,88.351,24.3085]
[1643370926943,6.0,88.399,88.351,24.3085]
[1643370927241,34.8745474,88.409,88.351,24.3085]
[1643370927446,34.8745474,88.409,88.352,0.25]
[1643370927843,16.98,88.44,88.352,0.25]
[1643370928045,6.0,88.427,88.352,0.25]
[1643370928244,16.98,88.44,88.351,26.43933883]
[1643370928444,16.98,88.44,88.352,0.25]
[1643370928648,0.25,88.436,88.352,2.38083883]
[1643370928845,41.9390892,88.436,88.352,2.38083883]
[1643370929946,41.9390892,88.436,88.352,0.25]
[1643370930548,41.9390892,88.436,88.351,24.3085]
[1643370930847,6.0,88.426,88.351,24.3085]
[1643370931248,0.25,88.425,88.351,24.3085]
[1643370931449,0.25,88.425,88.351,26.43933883]
[1643370931645,0.25,88.425,88.351,24.3085]
[1643370932448,0.25,88.435,88.351,24.3085]
[1643370934851,16.981,88.43,88.352,0.25]
[1643370935250,0.25,88.429,88.352,0.25]
[1643370936251,0.25,88.435,88.361,6.0]
[1643370936455,0.25,88.435,88.37,16.29]
[1643370936653,41.6890892,88.436,88.37,16.29]
[1643370937351,1.5643341,88.435,88.37,16.29]
[1643370937551,6.0,88.425,88.344,1.56453817]
[1643370937751,6.0,88.425,88.34,24.2218]
[1643370937752,1.5643341,88.419,88.34,24.2218]
[1643370937952,1.5643341,88.419,88.34,40.5118]
[1643370938153,6.0,88.409,88.34,40.5118]
[1643370938352,0.25,88.408,88.34,40.5118]
[1643370938551,6.0,88.404,88.34,40.5118]
[1643370938957,0.25,88.403,88.34,40.5118]
[1643370939454,0.25,88.403,88.34,16.29]
[1643370939753,6.0,88.398,88.34,16.29]
[1643370940154,0.25,88.397,88.34,16.29]
[1643370940355,16.989,88.39,88.326,1.56453817]
[1643370940556,6.0,88.38,88.312,1.56453817]
[1643370940779,6.0,88.38,88.32,6.0]
[1643370940954,0.25,88.379,88.32,6.0]
[1643370941156,0.25,88.379,88.319,6.0]
[1643370941157,6.25,88.379,88.319,6.0]
[1643370941354,36.35990514,88.378,88.319,6.0]
[1643370941555,6.0,88.368,88.313,6.0]
[1643370941957,0.25,88.367,88.314,0.25]
[1643370942154,0.25,88.367,88.32,6.0]
[1643370942355,0.25,88.377,88.33,16.29]
[1643370942553,0.25,88.377,88.331,8.72650072]
[1643370942753,0.25,88.377,88.33,16.29]
[1643370943556,0.25,88.377,88.331,0.25]
[1643370943755,0.25,88.377,88.331,38.52433495]
[1643370944057,0.25,88.377,88.332,2.13083883]
[1643370944259,0.25,88.377,88.331,38.27433495]
[1643370944858,0.25,88.377,88.33,16.29]
[1643370945859,0.25,88.377,88.331,32.3522483]
[1643370948283,0.25,88.408,88.332,24.6551]
[1643370948485,0.25,88.408,88.33,16.29]
[1643370948486,6.0,88.399,88.33,16.29]
[1643370948685,6.0,88.399,88.32,6.0]
[1643370948883,1.5643341,88.396,88.32,6.0]
[1643370949083,0.25,88.398,88.194,78.2626]
[1643370949084,6.0,88.386,88.31,22.29]
[1643370949287,0.25,88.385,88.31,22.29]
[1643370949484,46.78455302,88.385,88.311,32.86407805]
[1643370949684,40.78455302,88.385,88.311,32.86407805]
[1643370949884,6.0,88.375,88.321,6.0]
[1643370950286,0.25,88.374,88.321,6.0]
[1643370950887,0.25,88.374,88.32,6.0]
[1643370951089,0.25,88.374,88.31,16.29]
[1643370951289,0.25,88.374,88.3,16.29]
[1643370951491,24.7611,88.374,88.301,24.9715]
[1643370951692,24.7611,88.374,88.302,30.6620108]
[1643370951891,6.0,88.364,88.302,30.6620108]
[1643370952293,0.25,88.363,88.302,30.6620108]
[1643370953295,6.0,88.364,88.303,24.2132]
[1643370953595,6.0,88.36,88.303,24.2132]
[1643370953794,16.993,88.37,88.303,24.2132]
[1643370953996,6.0,88.36,88.303,24.2132]
[1643370954296,16.993,88.37,88.303,24.2132]
[1643370954497,6.0,88.36,88.303,24.2132]
[1643370954696,0.25,88.369,88.304,33.53882005]
[1643370955898,0.25,88.373,88.304,33.53882005]
[1643370956299,6.0,88.364,88.304,33.53882005]
[1643370956498,0.25,88.373,88.304,33.53882005]
[1643370957101,6.0,88.364,88.304,33.53882005]
[1643370957299,0.25,88.363,88.304,33.53882005]
[1643370957900,0.25,88.363,88.305,0.25]
[1643370958102,0.25,88.363,88.31,16.29]
[1643370958303,1.5643341,88.408,88.311,0.25]
[1643370958502,23.5543,88.409,88.311,26.19073361]
[1643370958703,6.0,88.388,88.32,6.0]
[1643370958915,6.0,88.388,88.321,31.1486]
[1643370959106,6.0,88.409,88.33,16.29]
[1643370959404,45.12564912,88.408,88.331,6.79227587]
[1643370959606,6.0,88.398,88.331,6.79227587]
[1643370959804,6.0,88.398,88.332,24.8986]
[1643370960008,6.0,88.398,88.332,27.02337058]
[1643370960207,6.0,88.398,88.333,0.25]
[1643370961206,0.25,88.397,88.333,0.25]
[1643370961408,0.25,88.407,88.333,0.25]
[1643370961807,0.25,88.407,88.342,6.0]
[1643370962009,0.25,88.407,88.35,16.29]
[1643370962210,0.25,88.422,88.35,16.29]
[1643370962408,0.25,88.433,88.36,6.0]
[1643370962614,1.5643341,88.446,88.37,16.29]
[1643370962808,1.5643341,88.455,88.371,0.25]
[1643370963016,4.58020311,88.505,88.371,0.25]
[1643370963017,35.62753894,88.461,88.38,6.0]
[1643370963208,35.62753894,88.461,88.39,16.29]
[1643370963408,35.62753894,88.461,88.391,0.25]
[1643370963607,35.62753894,88.461,88.401,6.54227587]
[1643370963810,0.25,88.46,88.41,16.29]
[1643370964611,0.25,88.46,88.411,23.1503]
[1643370964811,0.25,88.478,88.411,23.1503]
[1643370965009,0.25,88.478,88.412,24.5627]
[1643370965209,0.25,88.483,88.412,24.5627]
[1643370965415,49.39898772,88.485,88.413,0.25]
[1643370966010,49.39898772,88.485,88.414,2.12477058]
[1643370966210,0.25,88.485,88.414,2.12477058]
[1643370966410,1.5643341,88.491,88.415,0.25]
[1643370966610,1.5643341,88.503,88.431,112.9]
[1643370966810,1.5643341,88.519,88.432,0.25]
[1643370967035,1.5643341,88.519,88.45,203.61]
[1643370967209,37.1446592,88.53,88.46,16.29]
[1643370967417,1.5643341,88.538,88.461,0.25]
[1643370967609,1.5643341,88.538,88.471,112.9]
[1643370967810,1.5643341,88.552,88.48,16.29]
[1643370968010,1.5643341,88.557,88.49,6.0]
[1643370968214,16.955,88.57,88.5,16.29]
[1643370968409,40.58082085,88.569,88.501,6.54227587]
[1643370968810,0.25,88.568,88.502,0.25]
[1643370970616,1.5643341,88.603,88.503,2.12477058]
[1643370970819,1.5643341,88.606,88.511,6.0]
[1643370971014,6.0,88.595,88.52,16.29]
[1643370971212,6.0,88.595,88.53,16.29]
[1643370971417,6.0,88.595,88.531,0.25]
[1643370971613,37.08090773,88.594,88.531,33.78882005]
[1643370972616,37.08090773,88.594,88.531,33.53882005]
[1643370973618,0.25,88.593,88.531,33.53882005]
[1643370974117,37.08090773,88.594,88.531,33.53882005]
[1643370974319,75.5024,88.628,88.541,6.0]
[1643370974541,6.0,88.618,88.55,16.29]
[1643370974942,16.944,88.63,88.55,16.29]
[1643370974943,6.0,88.62,88.56,6.0]
[1643370975145,17.1741,88.637,88.56,6.0]
[1643370975146,47.74767802,88.619,88.57,16.29]
[1643370976244,16.94,88.65,88.57,16.29]
[1643370976645,6.0,88.64,88.57,16.29]
[1643370977145,6.0,88.64,88.571,0.25]
[1643370977345,45.32690628,88.639,88.58,6.0]
[1643370977545,6.0,88.629,88.58,16.29]
[1643370977948,17.86,88.629,88.58,16.29]
[1643370978547,46.8181,88.673,88.58,16.29]
[1643370978747,75.8704,88.674,88.581,0.25]
[1643370978949,16.934,88.68,88.59,209.61]
[1643370979147,45.5423,88.713,88.6,16.29]
[1643370979347,1.5643341,88.726,88.601,113.15]
[1643370979550,73.9709,88.74,88.621,31.03303007]
[1643370979748,16.924,88.73,88.63,236.822]
[1643370979948,73.9709,88.74,88.631,6.0]
[1643370980149,73.9709,88.74,88.64,6.0]
[1643370980350,16.8724,88.743,88.65,16.29]
[1643370980547,36.34761358,88.742,88.66,6.0]
[1643370980751,36.34761358,88.742,88.67,16.29]
[1643370981148,0.0892,88.741,88.67,16.29]
[1643370981349,0.0892,88.741,88.671,0.25]
[1643370981548,0.0892,88.741,88.67,16.29]
[1643370981549,6.0,88.732,88.67,16.29]
[1643370982649,6.0,88.732,88.68,6.0]
[1643370982851,6.0,88.732,88.68,22.29]
[1643370983449,0.25,88.731,88.68,22.29]
[1643370984250,0.25,88.731,88.689,6.0]
[1643370984450,0.25,88.731,88.68,16.29]
[1643370984651,0.0892,88.73,88.68,16.29]
[1643370985559,0.0892,88.73,88.66,16.29]
[1643370985752,0.0892,88.73,88.65,16.29]
[1643370986854,2.95669142,88.729,88.63,16.29]
[1643370987052,6.0,88.72,88.63,16.29]
[1643370987251,111.9,88.706,88.63,16.26507936]
[1643370987451,42.7512905,88.705,88.63,16.26507936]
[1643370987652,6.0,88.7,88.63,16.26507936]
[1643370987853,0.25,88.699,88.61,16.29]
[1643370988353,2.95669142,88.698,88.61,16.29]
[1643370988553,6.0,88.69,88.61,16.29]
[1643370988754,6.0,88.69,88.611,33.77249841]
[1643370988954,0.25,88.689,88.611,33.77249841]
[1643370989556,0.25,88.689,88.61,16.29]
[1643370989758,113.15,88.689,88.61,16.29]
[1643370990159,22.934,88.68,88.61,16.29]
[1643370990359,0.25,88.679,88.61,16.29]
[1643370990567,113.15,88.679,88.61,16.29]
[1643370990966,6.0,88.67,88.61,16.29]
[1643370991364,0.25,88.669,88.61,16.29]
[1643370991662,0.25,88.669,88.47,1.56453817]
[1643370991663,36.59761358,88.669,88.59,16.29]
[1643370991864,36.59761358,88.669,88.57,16.29]
[1643370992063,6.0,88.66,88.57,16.29]
[1643370992263,0.25,88.659,88.57,16.29]
[1643370992662,16.941,88.64,88.57,16.29]
[1643370992864,42.20320762,88.639,88.57,16.29]
[1643370993063,6.0,88.63,88.57,16.29]
[1643370993270,6.0,88.63,88.571,0.25]
[1643370993464,41.95320762,88.639,88.57,16.29]
[1643370993865,6.0,88.63,88.57,16.29]
[1643370994265,0.25,88.629,88.571,0.25]
[1643370994866,0.3392,88.638,88.571,0.25]
[1643370995068,0.0892,88.638,88.571,0.25]
[1643370995268,0.0892,88.638,88.572,2.12477058]
[1643370995669,0.0892,88.638,88.573,0.25]
[1643370996268,0.0892,88.638,88.568,34.98196389]
[1643370996269,0.3392,88.638,88.568,34.98196389]
[1643370996471,0.3392,88.638,88.58,13.55]
[1643370996672,0.3392,88.638,88.57,13.55]
[1643370996871,0.3392,88.638,88.56,13.55]
[1643370996872,6.0,88.63,88.56,13.55]
[1643370997268,0.3392,88.629,88.561,2.12477058]
[1643370997470,0.3392,88.629,88.562,30.96921315]
[1643370997869,0.3392,88.629,88.563,2.37477058]
[1643370998277,41.95320762,88.639,88.563,2.37477058]
[1643370998278,38.29240762,88.639,88.564,77.12477058]
[1643370998475,38.29240762,88.639,88.565,112.9]
[1643370998671,38.29240762,88.639,88.565,115.27477058]
[1643370998870,38.29240762,88.639,88.566,2.37477058]
[1643370999071,38.29240762,88.639,88.581,12.77268277]
[1643371000372,0.25,88.638,88.581,12.77268277]
[1643371001977,6.0,88.63,88.581,12.77268277]
[1643371002375,0.25,88.629,88.581,12.77268277]
[1643371003175,0.25,88.629,88.582,2.12477058]
[1643371003376,0.25,88.629,88.581,12.77268277]
[1643371003774,0.25,88.659,88.581,12.77268277]
[1643371003974,0.25,88.659,88.582,2.37477058]
[1643371004379,42.18946983,88.667,88.583,2.12477058]
[1643371004585,40.62513573,88.667,88.583,2.12477058]
[1643371004779,1.5643341,88.664,88.581,12.77268277]
[1643371004982,6.0,88.66,88.581,12.77268277]
[1643371005279,1.5643341,88.658,88.582,0.25]
[1643371005479,1.8143341,88.659,88.582,0.25]
[1643371005681,0.25,88.657,88.582,0.25]
[1643371006281,1.8143341,88.657,88.582,0.25]
[1643371006482,1.8143341,88.657,88.583,2.12477058]
[1643371006683,0.25,88.657,88.583,2.12477058]
[1643371006883,0.25,88.657,88.584,0.25]
[1643371007081,0.25,88.657,88.583,2.12477058]
[1643371007082,1.5643341,88.66,88.581,12.77268277]
[1643371007281,1.5643341,88.653,88.581,12.77268277]
[1643371007484,35.06296835,88.652,88.581,12.77268277]
[1643371007683,35.31296835,88.652,88.581,12.77268277]
[1643371008087,16.939,88.65,88.581,12.77268277]
[1643371008315,0.25,88.649,88.581,12.77268277]
[1643371008484,1.8143341,88.649,88.581,12.77268277]
[1643371008889,0.25,88.649,88.582,0.25]
[1643371009587,0.25,88.65,88.581,12.77268277]
[1643371009788,1.8143341,88.65,88.581,12.77268277]
[1643371010688,1.5643341,88.649,88.581,12.77268277]
[1643371010887,0.25,88.648,88.581,12.77268277]
[1643371011292,1.5643341,88.647,88.582,0.25]
[1643371011488,1.5643341,88.65,88.582,115.27471562]
[1643371011691,35.06296835,88.652,88.583,2.12471562]
[1643371011888,35.06296835,88.652,88.584,0.25]
[1643371012389,35.06296835,88.652,88.585,2.12471562]
[1643371012789,35.06296835,88.652,88.586,0.25]
[1643371012989,35.06296835,88.652,88.59,19.55]
[1643371013192,1.5643341,88.645,88.59,13.55]
[1643371013390,1.5643341,88.642,88.59,13.55]
[1643371013892,1.5643341,88.639,88.57,13.55]
[1643371014093,1.5643341,88.633,88.564,2.12471562]
[1643371014291,0.25,88.632,88.57,13.55]
[1643371014891,1.5643341,88.628,88.57,13.55]
[1643371015093,1.5643341,88.624,88.57,13.55]
[1643371015293,0.25,88.623,88.57,13.55]
[1643371015493,1.8143341,88.623,88.57,13.55]
[1643371015692,1.8143341,88.623,88.57,15.67471562]
[1643371015914,0.25,88.623,88.57,15.67471562]
[1643371016715,1.5643341,88.624,88.57,15.67471562]
[1643371016915,1.8143341,88.624,88.57,15.67471562]
[1643371017115,1.5643341,88.624,88.548,2.12471562]
[1643371017318,1.5643341,88.621,88.55,13.55]
[1643371017516,1.5643341,88.62,88.55,13.55]
[1643371017717,1.8143341,88.62,88.55,13.55]
[1643371017919,0.25,88.619,88.55,13.55]
[1643371018117,35.31296835,88.619,88.558,86.909048]
[1643371018918,36.87730245,88.619,88.558,47.5927]
[1643371019519,1.5643341,88.618,88.558,47.5927]
[1643371019921,0.25,88.617,88.558,47.5927]
[1643371020123,1.8143341,88.617,88.558,47.5927]
[1643371020524,1.8143341,88.617,88.563,12.4738035]
[1643371020922,1.8143341,88.617,88.558,47.5927]
[1643371021121,1.5643341,88.612,88.558,47.5927]
[1643371021326,0.25,88.611,88.558,47.5927]
[1643371022022,0.25,88.611,88.559,38.09636802]
[1643371023324,1.5643341,88.613,88.567,0.25]
[1643371023525,16.94,88.65,88.567,0.25]
[1643371023526,1.5643341,88.623,88.567,0.25]
[1643371023723,1.5643341,88.628,88.567,115.27471562]
[1643371023928,0.25,88.622,88.57,13.55]
[1643371024125,1.5643341,88.63,88.57,13.55]
[1643371024330,40.29717971,88.629,88.571,2.37471562]
[1643371024626,0.25,88.629,88.571,0.25]
[1643371024925,0.25,88.629,88.572,29.13951576]
[1643371025126,4.58020311,88.683,88.572,29.13951576]
[1643371025127,1.5643341,88.645,88.58,6.0]
[1643371025327,1.5643341,88.645,88.59,13.55]
[1643371025629,46.52723033,88.644,88.59,13.55]
[1643371025827,1.5643341,88.642,88.59,13.55]
[1643371026226,1.5643341,88.64,88.59,13.55]
[1643371026428,1.5643341,88.639,88.59,13.55]
[1643371026629,1.8143341,88.639,88.581,24.2911]
[1643371026831,1.5643341,88.637,88.581,24.2911]
[1643371027028,1.5643341,88.634,88.581,24.2911]
[1643371027238,1.5643341,88.627,88.56,13.55]
[1643371027529,28.91087375,88.619,88.538,1.56453817]
[1643371027928,28.91087375,88.619,88.518,1.56453817]
[1643371027929,1.5643341,88.607,88.518,1.56453817]
[1643371028129,6.0,88.6,88.514,45.8341]
[1643371028327,1.5643341,88.592,88.514,45.8341]
[1643371028528,7.5643341,88.59,88.514,45.8341]
[1643371028728,38.36625017,88.589,88.515,35.7962879]
[1643371028929,38.36625017,88.589,88.515,37.92100352]
[1643371028930,38.61625017,88.589,88.515,37.92100352]
[1643371029130,6.0,88.58,88.516,2.12471562]
[1643371029335,0.25,88.579,88.516,2.12471562]
[1643371030028,0.25,88.579,88.505,2.12471562]
[1643371030230,0.25,88.579,88.5,15.11453817]
[1643371030433,0.25,88.579,88.5,13.55]
[1643371031030,0.25,88.579,88.501,36.05636828]
[1643371031834,6.0,88.57,88.501,36.05636828]
[1643371032130,37.07185391,88.569,88.501,36.05636828]
[1643371032330,37.32185391,88.569,88.501,38.1810839]
[1643371033531,0.25,88.569,88.501,38.1810839]
[1643371033733,6.0,88.57,88.502,0.25]
[1643371033932,6.0,88.59,88.502,0.25]
[1643371034136,1.5643341,88.6,88.503,2.12471562]
[1643371034334,1.5643341,88.605,88.511,112.9]
[1643371034532,6.0,88.6,88.52,13.55]
[1643371034733,6.0,88.6,88.521,7.68552764]